[Event "Early-Titled-Tuesday-Blitz-January-23-2024"]
[Site "Chess.com"]
[Date "2024.01.23"]
[Round "2"]
[White "pirulillo"]
[Black "Chesstrainer1"]
[Result "0-1"]
[WhiteElo "2278"]
[BlackElo "2516"]
[TimeControl "180+1"]
[EndTime "8:14:43 PST"]
[Termination "Chesstrainer1 won by resignation"]

1. e4 {[%clk 0:03:00.6]} 1... c5 {[%clk 0:02:59.6]} 2. Nf3 {[%clk 0:02:58.2]}
2... a6 {[%clk 0:03:00.2]} 3. d3 {[%clk 0:02:57.8]} 3... g6 {[%clk 0:02:57.8]}
4. g3 {[%clk 0:02:57.7]} 4... Bg7 {[%clk 0:02:58]} 5. Bg2 {[%clk 0:02:58.3]}
5... b5 {[%clk 0:02:58.3]} 6. O-O {[%clk 0:02:58.6]} 6... Bb7 {[%clk 0:02:58.6]}
7. Re1 {[%clk 0:02:58.5]} 7... d6 {[%clk 0:02:58.2]} 8. c3 {[%clk 0:02:57.2]}
8... e5 {[%clk 0:02:52.6]} 9. d4 {[%clk 0:02:56]} 9... Nd7 {[%clk 0:02:51.3]}
10. a4 {[%clk 0:02:47]} 10... Ngf6 {[%clk 0:02:49.6]} 11. Nbd2 {[%clk
0:02:37.4]} 11... O-O {[%clk 0:02:46.6]} 12. Qe2 {[%clk 0:02:35]} 12... Qb6
{[%clk 0:02:23.4]} 13. d5 {[%clk 0:02:28.2]} 13... c4 {[%clk 0:02:17.1]} 14. a5
{[%clk 0:02:20.1]} 14... Qc7 {[%clk 0:02:12.4]} 15. Rf1 {[%clk 0:02:02.9]} 15...
Nc5 {[%clk 0:02:08.3]} 16. Ne1 {[%clk 0:02:02.8]} 16... Rae8 {[%clk 0:01:45.5]}
17. Nc2 {[%clk 0:02:01.7]} 17... Nfd7 {[%clk 0:01:43.9]} 18. Nb4 {[%clk
0:02:00.5]} 18... f5 {[%clk 0:01:43.3]} 19. f3 {[%clk 0:01:58.7]} 19... Na4
{[%clk 0:01:30.3]} 20. Nxc4 {[%clk 0:01:37.6]} 20... Nxc3 {[%clk 0:01:29.6]} 21.
bxc3 {[%clk 0:01:35.7]} 21... bxc4 {[%clk 0:01:29.3]} 22. Nc6 {[%clk 0:01:17.6]}
22... Bxc6 {[%clk 0:01:28.6]} 23. Qxc4 {[%clk 0:01:17.4]} 23... Qa7+ {[%clk
0:01:28.6]} 24. Kh1 {[%clk 0:01:14.5]} 24... Bb5 {[%clk 0:01:28.7]} 0-1

[Event "Early-Titled-Tuesday-Blitz-January-23-2024"]
[Site "Chess.com"]
[Date "2024.01.23"]
[Round "2"]
[White "Saraisitave"]
[Black "Barmen_EV"]
[Result "1-0"]
[WhiteElo "2373"]
[BlackElo "2520"]
[TimeControl "180+1"]
[EndTime "8:14:53 PST"]
[Termination "Saraisitave won by resignation"]

1. e4 {[%clk 0:03:00.9]} 1... c5 {[%clk 0:02:58.6]} 2. Nf3 {[%clk 0:03:00.3]}
2... Nc6 {[%clk 0:02:57.9]} 3. Nc3 {[%clk 0:02:58.5]} 3... e5 {[%clk 0:02:56]}
4. Bc4 {[%clk 0:02:57.5]} 4... Bd6 {[%clk 0:02:51.1]} 5. d3 {[%clk 0:02:57.2]}
5... Nge7 {[%clk 0:02:51.5]} 6. Ng5 {[%clk 0:02:51.1]} 6... Rf8 {[%clk
0:02:20.3]} 7. Nxh7 {[%clk 0:02:43.2]} 7... Rh8 {[%clk 0:02:20.4]} 8. Ng5 {[%clk
0:02:42.4]} 8... Rf8 {[%clk 0:02:19.6]} 9. Qh5 {[%clk 0:02:39.4]} 9... g6 {[%clk
0:02:03.3]} 10. Qh7 {[%clk 0:02:14.1]} 10... Qa5 {[%clk 0:01:52]} 11. Nxf7
{[%clk 0:01:54.9]} 11... Bc7 {[%clk 0:01:42.4]} 12. O-O {[%clk 0:01:49.5]} 12...
d5 {[%clk 0:01:39.3]} 13. Nxd5 {[%clk 0:01:44.6]} 13... Nxd5 {[%clk 0:01:36.1]}
14. Bxd5 {[%clk 0:01:44.5]} 14... Bd7 {[%clk 0:01:25.2]} 15. Qxg6 {[%clk
0:01:42.5]} 15... Ne7 {[%clk 0:01:04.9]} 16. Nd6+ {[%clk 0:01:41]} 16... Kd8
{[%clk 0:01:05.5]} 17. Nxb7+ {[%clk 0:01:40.9]} 17... Kc8 {[%clk 0:01:06.2]} 18.
Nxa5 {[%clk 0:01:38.4]} 18... Nxg6 {[%clk 0:01:06.2]} 19. Bxa8 {[%clk 0:01:38]}
19... Bxa5 {[%clk 0:01:07.1]} 20. Bd5 {[%clk 0:01:36.4]} 20... Bd8 {[%clk
0:01:01.4]} 21. c3 {[%clk 0:01:36]} 21... Nh4 {[%clk 0:01:01]} 22. f4 {[%clk
0:01:30.6]} 22... Rg8 {[%clk 0:00:58.2]} 23. Bxg8 {[%clk 0:01:29]} 1-0

[Event "Early-Titled-Tuesday-Blitz-January-23-2024"]
[Site "Chess.com"]
[Date "2024.01.23"]
[Round "2"]
[White "Ati1517"]
[Black "Predo63"]
[Result "1/2-1/2"]
[WhiteElo "2238"]
[BlackElo "2487"]
[TimeControl "180+1"]
[EndTime "8:15:10 PST"]
[Termination "Game drawn by repetition"]

1. e4 {[%clk 0:03:00.9]} 1... c6 {[%clk 0:03:00.1]} 2. d4 {[%clk 0:03:00.4]}
2... d5 {[%clk 0:02:59.9]} 3. Nc3 {[%clk 0:03:00.5]} 3... dxe4 {[%clk
0:02:59.9]} 4. Nxe4 {[%clk 0:03:00.4]} 4... Bf5 {[%clk 0:03:00.6]} 5. Ng3 {[%clk
0:03:00]} 5... Bg6 {[%clk 0:03:01]} 6. f4 {[%clk 0:03:00.1]} 6... e6 {[%clk
0:03:00]} 7. Nf3 {[%clk 0:02:59.8]} 7... Ne7 {[%clk 0:02:59.4]} 8. c3 {[%clk
0:02:57.5]} 8... Nf5 {[%clk 0:02:58.9]} 9. Bd3 {[%clk 0:02:51.5]} 9... Nxg3
{[%clk 0:02:58.8]} 10. hxg3 {[%clk 0:02:51.7]} 10... Bxd3 {[%clk 0:02:56.6]} 11.
Qxd3 {[%clk 0:02:51]} 11... h6 {[%clk 0:02:56.9]} 12. Ne5 {[%clk 0:02:49.9]}
12... Nd7 {[%clk 0:02:56.1]} 13. Be3 {[%clk 0:02:49.1]} 13... Nf6 {[%clk
0:02:53.6]} 14. O-O-O {[%clk 0:02:43.5]} 14... Bd6 {[%clk 0:02:53.3]} 15. Rde1
{[%clk 0:02:28.5]} 15... Qa5 {[%clk 0:02:47.4]} 16. Kb1 {[%clk 0:02:26]} 16...
Bxe5 {[%clk 0:02:45.3]} 17. fxe5 {[%clk 0:02:25.6]} 17... Nd5 {[%clk 0:02:44.8]}
18. Bd2 {[%clk 0:02:21.1]} 18... Nb6 {[%clk 0:02:41.6]} 19. Ref1 {[%clk
0:02:15.5]} 19... Rf8 {[%clk 0:02:37.2]} 20. Qh7 {[%clk 0:02:02.6]} 20... Nc4
{[%clk 0:02:32.3]} 21. Bc1 {[%clk 0:02:00.7]} 21... Qb5 {[%clk 0:02:31.3]} 22.
Rf2 {[%clk 0:01:44]} 22... O-O-O {[%clk 0:02:27.4]} 23. Qxg7 {[%clk 0:01:35.4]}
23... a5 {[%clk 0:02:23.9]} 24. Rxf7 {[%clk 0:00:55.4]} 24... Rxf7 {[%clk
0:02:21.1]} 25. Qxf7 {[%clk 0:00:55.2]} 25... Na3+ {[%clk 0:02:17.8]} 26. Ka1
{[%clk 0:00:54.9]} 26... Nc2+ {[%clk 0:02:18.1]} 27. Kb1 {[%clk 0:00:54.6]}
27... Qd3 {[%clk 0:02:12]} 28. a4 {[%clk 0:00:35.7]} 28... Nb4+ {[%clk
0:01:56.9]} 29. Ka1 {[%clk 0:00:34.5]} 29... Nc2+ {[%clk 0:01:57]} 30. Kb1
{[%clk 0:00:34]} 30... Nb4+ {[%clk 0:01:56.3]} 31. Ka1 {[%clk 0:00:34.1]} 31...
Nc2+ {[%clk 0:01:56.5]} 32. Kb1 {[%clk 0:00:34]} 1/2-1/2

[Event "Early-Titled-Tuesday-Blitz-January-23-2024"]
[Site "Chess.com"]
[Date "2024.01.23"]
[Round "2"]
[White "Shivananda1964"]
[Black "SirStrateg"]
[Result "0-1"]
[WhiteElo "2355"]
[BlackElo "2624"]
[TimeControl "180+1"]
[EndTime "8:15:12 PST"]
[Termination "SirStrateg won by checkmate"]

1. e4 {[%clk 0:03:00.9]} 1... Nf6 {[%clk 0:03:00.4]} 2. e5 {[%clk 0:02:59.8]}
2... Nd5 {[%clk 0:03:00.8]} 3. c4 {[%clk 0:03:00.4]} 3... Nb6 {[%clk 0:02:59.5]}
4. c5 {[%clk 0:03:01.1]} 4... Nd5 {[%clk 0:02:59.7]} 5. Bc4 {[%clk 0:03:01.7]}
5... e6 {[%clk 0:02:59.7]} 6. d4 {[%clk 0:03:02.5]} 6... b6 {[%clk 0:02:55.3]}
7. cxb6 {[%clk 0:03:02.5]} 7... axb6 {[%clk 0:02:54.5]} 8. Nf3 {[%clk
0:03:02.7]} 8... Ba6 {[%clk 0:02:54.3]} 9. b3 {[%clk 0:03:03.1]} 9... Bb4+
{[%clk 0:02:51.8]} 10. Bd2 {[%clk 0:03:02.7]} 10... Bxd2+ {[%clk 0:02:49.8]} 11.
Nbxd2 {[%clk 0:03:02.9]} 11... Bxc4 {[%clk 0:02:44.3]} 12. bxc4 {[%clk
0:02:57.1]} 12... Ne7 {[%clk 0:02:44.6]} 13. O-O {[%clk 0:02:54.7]} 13... O-O
{[%clk 0:02:44.5]} 14. Qc2 {[%clk 0:02:53.3]} 14... Nbc6 {[%clk 0:02:40.7]} 15.
Ne4 {[%clk 0:02:45.2]} 15... h6 {[%clk 0:02:39.8]} 16. Rad1 {[%clk 0:02:37.9]}
16... Ra5 {[%clk 0:02:39.8]} 17. Rfe1 {[%clk 0:02:31.2]} 17... Qa8 {[%clk
0:02:39.4]} 18. Re2 {[%clk 0:01:54.4]} 18... Rd8 {[%clk 0:02:21.6]} 19. h4
{[%clk 0:01:50.3]} 19... b5 {[%clk 0:02:17]} 20. Nf6+ {[%clk 0:01:30.6]} 20...
gxf6 {[%clk 0:02:13.5]} 21. exf6 {[%clk 0:01:30.5]} 21... bxc4 {[%clk
0:02:10.3]} 22. fxe7 {[%clk 0:00:55.3]} 22... Nxe7 {[%clk 0:02:11.2]} 23. Ne5
{[%clk 0:00:39.2]} 23... f6 {[%clk 0:02:09.4]} 24. Ng6 {[%clk 0:00:34.8]} 24...
Nf5 {[%clk 0:02:07]} 25. g4 {[%clk 0:00:29.9]} 25... Kf7 {[%clk 0:01:58.2]} 26.
gxf5 {[%clk 0:00:25.3]} 26... Rxf5 {[%clk 0:01:58.5]} 27. h5 {[%clk 0:00:22]}
27... Rg5+ {[%clk 0:01:57.6]} 28. Kf1 {[%clk 0:00:22.3]} 28... Qh1# {[%clk
0:01:57.2]} 0-1

[Event "Early-Titled-Tuesday-Blitz-January-23-2024"]
[Site "Chess.com"]
[Date "2024.01.23"]
[Round "2"]
[White "Duhless"]
[Black "M1711"]
[Result "1-0"]
[WhiteElo "3133"]
[BlackElo "2651"]
[TimeControl "180+1"]
[EndTime "8:15:17 PST"]
[Termination "Duhless won on time"]

1. d4 {[%clk 0:02:56.6]} 1... d5 {[%clk 0:02:59.8]} 2. Nf3 {[%clk 0:02:56.2]}
2... Nf6 {[%clk 0:02:58.8]} 3. Bf4 {[%clk 0:02:56.7]} 3... Bf5 {[%clk
0:02:57.6]} 4. c4 {[%clk 0:02:54.8]} 4... e6 {[%clk 0:02:55.9]} 5. Qb3 {[%clk
0:02:54.4]} 5... dxc4 {[%clk 0:02:48.8]} 6. Qxb7 {[%clk 0:02:52.3]} 6... Be4
{[%clk 0:02:47.4]} 7. Qxc7 {[%clk 0:02:52.1]} 7... Qxc7 {[%clk 0:02:46.1]} 8.
Bxc7 {[%clk 0:02:51.5]} 8... Bb4+ {[%clk 0:02:35.9]} 9. Nbd2 {[%clk 0:02:49.9]}
9... Nc6 {[%clk 0:02:16.6]} 10. e3 {[%clk 0:02:45.4]} 10... c3 {[%clk
0:01:56.1]} 11. bxc3 {[%clk 0:02:44.3]} 11... Bxc3 {[%clk 0:01:57]} 12. Rd1
{[%clk 0:02:37.3]} 12... Nd5 {[%clk 0:01:52.2]} 13. Bg3 {[%clk 0:02:34.7]} 13...
Ndb4 {[%clk 0:01:41.6]} 14. Bb5 {[%clk 0:02:29.2]} 14... Ke7 {[%clk 0:01:04.7]}
15. Ke2 {[%clk 0:02:25.6]} 15... Bd5 {[%clk 0:00:57.6]} 16. a3 {[%clk
0:02:21.2]} 16... Na2 {[%clk 0:00:22.1]} 17. e4 {[%clk 0:02:03.8]} 17... Bxd2
{[%clk 0:00:18.1]} 18. Kxd2 {[%clk 0:02:03.4]} 18... Bxe4 {[%clk 0:00:13.1]} 19.
Bc4 {[%clk 0:02:03.7]} 19... Bxf3 {[%clk 0:00:04.2]} 20. gxf3 {[%clk 0:02:02.8]}
20... Nxd4 {[%clk 0:00:02.7]} 21. Bxa2 {[%clk 0:02:01.4]} 1-0

[Event "Early-Titled-Tuesday-Blitz-January-23-2024"]
[Site "Chess.com"]
[Date "2024.01.23"]
[Round "2"]
[White "amintabatabaei"]
[Black "crazy_but_lazy"]
[Result "1-0"]
[WhiteElo "3027"]
[BlackElo "2632"]
[TimeControl "180+1"]
[EndTime "8:15:22 PST"]
[Termination "amintabatabaei won by resignation"]

1. d4 {[%clk 0:03:00.9]} 1... d5 {[%clk 0:02:58.5]} 2. Nf3 {[%clk 0:03:00.9]}
2... Nf6 {[%clk 0:02:58.1]} 3. Bg5 {[%clk 0:03:01.6]} 3... e6 {[%clk 0:02:57.5]}
4. e3 {[%clk 0:03:01.6]} 4... Bd6 {[%clk 0:02:54.9]} 5. Nbd2 {[%clk 0:03:01.4]}
5... O-O {[%clk 0:02:54]} 6. Bd3 {[%clk 0:03:00.5]} 6... b6 {[%clk 0:02:53.3]}
7. e4 {[%clk 0:03:00.6]} 7... dxe4 {[%clk 0:02:47.4]} 8. Nxe4 {[%clk 0:03:01.5]}
8... Be7 {[%clk 0:02:47.2]} 9. Qe2 {[%clk 0:02:39.8]} 9... Bb7 {[%clk
0:02:32.5]} 10. Bxf6 {[%clk 0:02:40.1]} 10... Bxf6 {[%clk 0:02:32.6]} 11. O-O-O
{[%clk 0:02:40.8]} 11... Nd7 {[%clk 0:02:30.5]} 12. h4 {[%clk 0:02:41]} 12...
Qe7 {[%clk 0:02:13]} 13. g4 {[%clk 0:02:33.4]} 13... g6 {[%clk 0:02:13.1]} 14.
h5 {[%clk 0:02:29.2]} 14... Bg7 {[%clk 0:02:06.5]} 15. hxg6 {[%clk 0:02:28]}
15... hxg6 {[%clk 0:02:06.4]} 16. Qe3 {[%clk 0:02:22]} 16... Nf6 {[%clk
0:02:00.8]} 17. Ne5 {[%clk 0:02:09.9]} 17... Rad8 {[%clk 0:01:48.7]} 18. Qh3
{[%clk 0:02:01.6]} 18... Rfe8 {[%clk 0:01:44.5]} 19. Ng5 {[%clk 0:01:42.4]}
19... Bxh1 {[%clk 0:01:15.1]} 20. Rxh1 {[%clk 0:01:43.3]} 20... Rxd4 {[%clk
0:01:11.4]} 21. Ngxf7 {[%clk 0:01:43.8]} 21... Rxg4 {[%clk 0:00:50.5]} 22. Nxg4
{[%clk 0:01:26.8]} 22... Qxf7 {[%clk 0:00:49.6]} 23. Ne5 {[%clk 0:01:24.5]}
23... Qe7 {[%clk 0:00:47.6]} 24. Bxg6 {[%clk 0:01:24.8]} 24... Rd8 {[%clk
0:00:41.7]} 25. Bh7+ {[%clk 0:01:22.4]} 1-0

[Event "Early-Titled-Tuesday-Blitz-January-23-2024"]
[Site "Chess.com"]
[Date "2024.01.23"]
[Round "2"]
[White "Mistango"]
[Black "Sofia_Blokhin"]
[Result "1-0"]
[WhiteElo "2527"]
[BlackElo "2306"]
[TimeControl "180+1"]
[EndTime "8:15:30 PST"]
[Termination "Mistango won by checkmate"]

1. e4 {[%clk 0:03:00.9]} 1... c5 {[%clk 0:02:59.3]} 2. Nf3 {[%clk 0:03:01.1]}
2... e6 {[%clk 0:02:58.8]} 3. d4 {[%clk 0:03:01.7]} 3... cxd4 {[%clk 0:02:58.9]}
4. Nxd4 {[%clk 0:03:02.6]} 4... a6 {[%clk 0:02:57.9]} 5. Bd3 {[%clk 0:03:01.8]}
5... Nf6 {[%clk 0:02:56.7]} 6. O-O {[%clk 0:03:01.4]} 6... Qc7 {[%clk
0:02:54.9]} 7. Qe2 {[%clk 0:03:01.9]} 7... Bd6 {[%clk 0:02:53.1]} 8. f4 {[%clk
0:02:59]} 8... Bc5 {[%clk 0:02:50.4]} 9. Be3 {[%clk 0:02:58.6]} 9... Qb6 {[%clk
0:02:46.5]} 10. c3 {[%clk 0:02:59.1]} 10... Nc6 {[%clk 0:02:42]} 11. Kh1 {[%clk
0:02:45.8]} 11... Nxd4 {[%clk 0:02:36.9]} 12. cxd4 {[%clk 0:02:46.7]} 12... Bxd4
{[%clk 0:02:32.7]} 13. Bxd4 {[%clk 0:02:47.6]} 13... Qxd4 {[%clk 0:02:32.2]} 14.
Nc3 {[%clk 0:02:48.2]} 14... d6 {[%clk 0:02:11.2]} 15. Rad1 {[%clk 0:02:47.8]}
15... Qc5 {[%clk 0:02:03.8]} 16. e5 {[%clk 0:02:47.5]} 16... Nd5 {[%clk
0:01:43]} 17. Ne4 {[%clk 0:02:45.2]} 17... Qe3 {[%clk 0:01:31.8]} 18. Nxd6+
{[%clk 0:02:45.7]} 18... Ke7 {[%clk 0:01:28.3]} 19. Qg4 {[%clk 0:02:45.2]} 19...
g6 {[%clk 0:01:11.1]} 20. Be4 {[%clk 0:02:43.6]} 20... h6 {[%clk 0:00:51.6]} 21.
Bxd5 {[%clk 0:02:42.5]} 21... exd5 {[%clk 0:00:49.1]} 22. Qh4+ {[%clk
0:02:41.6]} 22... g5 {[%clk 0:00:44.5]} 23. fxg5 {[%clk 0:02:42.3]} 23... Be6
{[%clk 0:00:20.3]} 24. gxh6+ {[%clk 0:02:42.1]} 24... Kd7 {[%clk 0:00:17.9]} 25.
Nxf7 {[%clk 0:02:42.4]} 25... Rhf8 {[%clk 0:00:12.2]} 26. Ng5 {[%clk 0:02:41.4]}
26... Qe2 {[%clk 0:00:09.5]} 27. Rg1 {[%clk 0:02:24]} 27... Rf2 {[%clk
0:00:08.9]} 28. Rde1 {[%clk 0:02:14.6]} 28... Qd2 {[%clk 0:00:06.7]} 29. Nf3
{[%clk 0:02:11.1]} 29... Qxb2 {[%clk 0:00:03.8]} 30. Rb1 {[%clk 0:02:10.8]}
30... Qxa2 {[%clk 0:00:03.3]} 31. Rxb7+ {[%clk 0:02:09]} 31... Kc6 {[%clk
0:00:03.6]} 32. Qe7 {[%clk 0:02:09.5]} 32... Rf8 {[%clk 0:00:03.2]} 33. Qc7#
{[%clk 0:02:09.8]} 1-0

[Event "Early-Titled-Tuesday-Blitz-January-23-2024"]
[Site "Chess.com"]
[Date "2024.01.23"]
[Round "2"]
[White "GP9isback23"]
[Black "Anton_Demchenko"]
[Result "0-1"]
[WhiteElo "2608"]
[BlackElo "2946"]
[TimeControl "180+1"]
[EndTime "8:15:34 PST"]
[Termination "Anton_Demchenko won by resignation"]

1. d4 {[%clk 0:03:00.9]} 1... g6 {[%clk 0:02:59]} 2. Nf3 {[%clk 0:03:01.1]} 2...
Bg7 {[%clk 0:02:58.9]} 3. e3 {[%clk 0:03:02]} 3... d6 {[%clk 0:02:58.7]} 4. Be2
{[%clk 0:03:02.9]} 4... Nd7 {[%clk 0:02:58.6]} 5. O-O {[%clk 0:03:03.8]} 5... e5
{[%clk 0:02:59.2]} 6. c4 {[%clk 0:02:54.1]} 6... Ngf6 {[%clk 0:02:57]} 7. Nc3
{[%clk 0:02:54.3]} 7... O-O {[%clk 0:02:57.5]} 8. b3 {[%clk 0:02:53.2]} 8... Re8
{[%clk 0:02:57.6]} 9. Bb2 {[%clk 0:02:52.9]} 9... c6 {[%clk 0:02:56.9]} 10. Rc1
{[%clk 0:02:52.8]} 10... e4 {[%clk 0:02:51.8]} 11. Nd2 {[%clk 0:02:50.9]} 11...
Nf8 {[%clk 0:02:51.5]} 12. b4 {[%clk 0:02:50.5]} 12... h5 {[%clk 0:02:47.7]} 13.
a4 {[%clk 0:02:48.5]} 13... a5 {[%clk 0:02:46.8]} 14. b5 {[%clk 0:02:48.6]}
14... c5 {[%clk 0:02:47.4]} 15. Nb3 {[%clk 0:02:41.5]} 15... Qe7 {[%clk
0:02:31.6]} 16. b6 {[%clk 0:02:23.3]} 16... Ra6 {[%clk 0:01:49.7]} 17. Ba3
{[%clk 0:02:14.3]} 17... Ne6 {[%clk 0:01:11.5]} 18. Nd5 {[%clk 0:02:10.5]} 18...
Qf8 {[%clk 0:01:11.7]} 19. dxc5 {[%clk 0:02:08.7]} 19... dxc5 {[%clk 0:01:05]}
20. Nc7 {[%clk 0:02:07.2]} 20... Rxb6 {[%clk 0:00:58.7]} 21. Nxe6 {[%clk
0:02:00.5]} 21... Rexe6 {[%clk 0:00:46.2]} 22. Bxc5 {[%clk 0:01:59.4]} 22... Qe8
{[%clk 0:00:46.9]} 23. Bxb6 {[%clk 0:01:57.7]} 23... Rxb6 {[%clk 0:00:47.8]} 24.
Nd4 {[%clk 0:01:56.7]} 24... Bd7 {[%clk 0:00:25.3]} 25. Nb5 {[%clk 0:01:53.8]}
25... Rc6 {[%clk 0:00:18.6]} 26. Qb3 {[%clk 0:01:51.7]} 26... Qe5 {[%clk
0:00:18.7]} 27. Rfd1 {[%clk 0:01:50.3]} 27... Be6 {[%clk 0:00:16.8]} 28. Qc3
{[%clk 0:01:47.8]} 28... Qb8 {[%clk 0:00:15.8]} 29. c5 {[%clk 0:01:47.5]} 29...
Ng4 {[%clk 0:00:16.1]} 0-1

[Event "Early-Titled-Tuesday-Blitz-January-23-2024"]
[Site "Chess.com"]
[Date "2024.01.23"]
[Round "2"]
[White "DavidGavrilescu18"]
[Black "N4700000"]
[Result "1-0"]
[WhiteElo "2828"]
[BlackElo "2415"]
[TimeControl "180+1"]
[EndTime "8:15:34 PST"]
[Termination "DavidGavrilescu18 won by resignation"]

1. e4 {[%clk 0:03:00.9]} 1... e6 {[%clk 0:02:59]} 2. d4 {[%clk 0:02:59.8]} 2...
d5 {[%clk 0:02:56.8]} 3. e5 {[%clk 0:03:00.3]} 3... c5 {[%clk 0:02:55.4]} 4. c3
{[%clk 0:03:00]} 4... Nc6 {[%clk 0:02:54.3]} 5. Nf3 {[%clk 0:02:59]} 5... Nge7
{[%clk 0:02:50]} 6. Na3 {[%clk 0:02:51.8]} 6... cxd4 {[%clk 0:02:43.7]} 7. cxd4
{[%clk 0:02:51.2]} 7... Nf5 {[%clk 0:02:42.6]} 8. Nc2 {[%clk 0:02:50.7]} 8...
Bd7 {[%clk 0:02:37]} 9. Bd3 {[%clk 0:02:47.5]} 9... Nb4 {[%clk 0:02:24.7]} 10.
Bxf5 {[%clk 0:02:43.5]} 10... exf5 {[%clk 0:02:22.9]} 11. Nxb4 {[%clk
0:02:42.9]} 11... Bxb4+ {[%clk 0:02:23.8]} 12. Bd2 {[%clk 0:02:43.4]} 12... Be7
{[%clk 0:02:22.6]} 13. O-O {[%clk 0:02:43.1]} 13... g5 {[%clk 0:02:12.3]} 14.
Qb3 {[%clk 0:02:30.3]} 14... Bc6 {[%clk 0:01:56.6]} 15. Bb4 {[%clk 0:02:20.5]}
15... f4 {[%clk 0:01:41.8]} 16. Rfe1 {[%clk 0:02:10.9]} 16... g4 {[%clk
0:01:23.4]} 17. e6 {[%clk 0:02:04.8]} 17... f5 {[%clk 0:00:37.5]} 18. Ne5 {[%clk
0:01:59.6]} 18... O-O {[%clk 0:00:37.3]} 19. Nf7 {[%clk 0:01:41.4]} 19... Qc7
{[%clk 0:00:36.4]} 20. Re5 {[%clk 0:01:39.5]} 20... a5 {[%clk 0:00:21.7]} 21.
Bxe7 {[%clk 0:01:33.4]} 21... Qxe7 {[%clk 0:00:22.6]} 22. Rae1 {[%clk
0:01:33.1]} 22... Qf6 {[%clk 0:00:21]} 23. Rxf5 {[%clk 0:01:32.5]} 1-0

[Event "Early-Titled-Tuesday-Blitz-January-23-2024"]
[Site "Chess.com"]
[Date "2024.01.23"]
[Round "2"]
[White "Maus7"]
[Black "hsd2016"]
[Result "1-0"]
[WhiteElo "2516"]
[BlackElo "2277"]
[TimeControl "180+1"]
[EndTime "8:15:36 PST"]
[Termination "Maus7 won by checkmate"]

1. e4 {[%clk 0:02:59.2]} 1... c5 {[%clk 0:02:59.8]} 2. Nc3 {[%clk 0:02:55.3]}
2... e6 {[%clk 0:02:58.4]} 3. Nf3 {[%clk 0:02:49.6]} 3... a6 {[%clk 0:02:54.8]}
4. Be2 {[%clk 0:02:49.3]} 4... b5 {[%clk 0:02:53.2]} 5. O-O {[%clk 0:02:49.1]}
5... Bb7 {[%clk 0:02:52.5]} 6. d4 {[%clk 0:02:44.5]} 6... cxd4 {[%clk
0:02:51.4]} 7. Qxd4 {[%clk 0:02:45.4]} 7... Nc6 {[%clk 0:02:51.2]} 8. Qe3 {[%clk
0:02:43.6]} 8... Nf6 {[%clk 0:02:50.8]} 9. Rd1 {[%clk 0:02:38.4]} 9... Rc8
{[%clk 0:02:49.9]} 10. e5 {[%clk 0:02:22.8]} 10... Ng4 {[%clk 0:02:47.9]} 11.
Qf4 {[%clk 0:02:20.4]} 11... Nh6 {[%clk 0:02:38.9]} 12. a4 {[%clk 0:02:12.4]}
12... b4 {[%clk 0:02:27.9]} 13. Ne4 {[%clk 0:02:13]} 13... Be7 {[%clk
0:02:23.9]} 14. Nf6+ {[%clk 0:01:31.3]} 14... gxf6 {[%clk 0:02:14.8]} 15. Qxh6
{[%clk 0:01:31.9]} 15... Nxe5 {[%clk 0:02:10.9]} 16. Qg7 {[%clk 0:01:26.1]}
16... Ng6 {[%clk 0:02:10.1]} 17. Qh6 {[%clk 0:01:07.9]} 17... Rxc2 {[%clk
0:02:00.8]} 18. Nd4 {[%clk 0:01:03.7]} 18... Rc8 {[%clk 0:01:48.8]} 19. Be3
{[%clk 0:01:04.1]} 19... d5 {[%clk 0:01:29.3]} 20. Rac1 {[%clk 0:00:40]} 20...
Bf8 {[%clk 0:01:25.9]} 21. Qh3 {[%clk 0:00:39.1]} 21... Bg7 {[%clk 0:01:23.8]}
22. Nxe6 {[%clk 0:00:31.8]} 22... fxe6 {[%clk 0:01:22.4]} 23. Qxe6+ {[%clk
0:00:32.7]} 23... Ne7 {[%clk 0:01:19.2]} 24. Bh5+ {[%clk 0:00:31.7]} 24... Kf8
{[%clk 0:01:12.7]} 25. Qf7# {[%clk 0:00:32.6]} 1-0

[Event "Early-Titled-Tuesday-Blitz-January-23-2024"]
[Site "Chess.com"]
[Date "2024.01.23"]
[Round "2"]
[White "bubeliang"]
[Black "Nouali_Mohamed"]
[Result "1-0"]
[WhiteElo "2790"]
[BlackElo "2543"]
[TimeControl "180+1"]
[EndTime "8:15:39 PST"]
[Termination "bubeliang won on time"]

1. e4 {[%clk 0:02:51.3]} 1... c5 {[%clk 0:03:00.2]} 2. c3 {[%clk 0:02:44.8]}
2... d5 {[%clk 0:02:58.2]} 3. exd5 {[%clk 0:02:44.5]} 3... Qxd5 {[%clk
0:02:59.1]} 4. d4 {[%clk 0:02:42.1]} 4... Nc6 {[%clk 0:02:58.6]} 5. Nf3 {[%clk
0:02:41.6]} 5... Bg4 {[%clk 0:02:58.3]} 6. dxc5 {[%clk 0:02:39.7]} 6... Qxc5
{[%clk 0:02:53.1]} 7. Be3 {[%clk 0:02:38.1]} 7... Qh5 {[%clk 0:02:40.9]} 8. Be2
{[%clk 0:02:30.6]} 8... e6 {[%clk 0:02:01.9]} 9. h3 {[%clk 0:02:27.3]} 9... Nf6
{[%clk 0:01:51.9]} 10. O-O {[%clk 0:02:16.4]} 10... Bxh3 {[%clk 0:01:34.4]} 11.
Nh2 {[%clk 0:02:13.4]} 11... Qg6 {[%clk 0:01:19.1]} 12. Bf3 {[%clk 0:02:09.1]}
12... Be7 {[%clk 0:00:44.5]} 13. Bxc6+ {[%clk 0:02:05.9]} 13... bxc6 {[%clk
0:00:44.4]} 14. Qf3 {[%clk 0:02:06.8]} 14... Bxg2 {[%clk 0:00:23.1]} 15. Qxg2
{[%clk 0:02:05.9]} 15... Nd5 {[%clk 0:00:20.9]} 16. Nd2 {[%clk 0:02:02.8]} 16...
Qxg2+ {[%clk 0:00:09.9]} 17. Kxg2 {[%clk 0:02:02.6]} 17... Rb8 {[%clk
0:00:10.8]} 18. Nc4 {[%clk 0:02:01.6]} 18... Rb7 {[%clk 0:00:04.7]} 19. Nf3
{[%clk 0:01:58.8]} 19... f6 {[%clk 0:00:04.6]} 20. Nd4 {[%clk 0:01:58.9]} 20...
Kf7 {[%clk 0:00:04.3]} 21. Nxc6 {[%clk 0:01:58.9]} 21... h6 {[%clk 0:00:04.2]}
22. Nxe7 {[%clk 0:01:59.2]} 22... Kxe7 {[%clk 0:00:04.6]} 23. Rad1 {[%clk
0:01:57.8]} 23... h5 {[%clk 0:00:03.9]} 24. Bc5+ {[%clk 0:01:57.7]} 24... Kd7
{[%clk 0:00:04.3]} 25. b4 {[%clk 0:01:57]} 25... h4 {[%clk 0:00:03.9]} 26. Na5
{[%clk 0:01:53]} 26... Rc7 {[%clk 0:00:04.3]} 27. c4 {[%clk 0:01:52.8]} 1-0